Cogmind - Beta 14 @@@ ROGUE MODE // 2024.08.14 @ 00:08:44 Player: albenzo Result: Destroyed by WU-3JM(R) with Subdweller Machine Gun Performance ------------- Evolutions (0) 0 Regions Visited (2) 400 Robots Destroyed (17) 85 Value Destroyed (283) 283 Prototype IDs (3) 60 Alien Tech Used (0) 0 Bonus (0) 0 TOTAL SCORE: 828 Bonus ------- None Cogmind --------- Core Integrity 0/250 Matter 175/300 Energy 125/125 System Corruption 0% Temperature Cool (0) Movement Treading (160) Location -10/Subcaves Parts ------- > --- POWER (1) -------- Light Ion Engine > --- PROPULSION (2) --- Light Treads Spiked Treads > --- UTILITY (2) ------ Large Storage Unit Targeting Computer > --- WEAPON (2) ------- Light Cannon Light Cannon > --- INVENTORY (15) --- Light Treads Light Treads Compact Wheel Heat Sink High-capacity Storage Unit Structural Scanner Seismic Detector Tractor Beam Light Assault Rifle Light Assault Rifle Light Cannon Mining Claw Peak State ------------ > --- POWER ------------ Ion Engine > --- PROPULSION ------- Light Treads Spiked Treads > --- UTILITY ---------- Large Storage Unit Targeting Computer > --- WEAPON ----------- Assault Rifle Light Assault Rifle > --- INVENTORY -------- Light Ion Engine Light Treads Light Treads Compact Wheel Heat Sink High-capacity Storage Unit Structural Scanner Seismic Detector Tractor Beam Light Assault Rifle Light Assault Rifle Light Cannon Light Cannon Light Cannon Mining Claw [Rating: 9] Favorites ----------- Power Light Ion Engine Engine Light Ion Engine Propulsion Light Treads Treads Light Treads Leg Aluminum Leg Utility Large Storage Unit Device Seismic Detector Storage Large Storage Unit Processor Targeting Computer Weapon Assault Rifle Ballistic Gun Assault Rifle Ballistic Cannon Light Cannon Slashing Weapon Mining Claw Build | -11 -10 -10 ------- Run | Yrd Mat Sub Slots Evolved . | . . . Power . | . . . Propulsion . | . . . Utility . | . . . Weapon . | . . . Parts Attached 18 | 4 10 4 Power 4 | . 3 1 Engine 4 | . 3 1 Core . | . . . Reactor . | . . . Propulsion 4 | 2 1 1 Treads 4 | 2 1 1 Leg . | . . . Wheel . | . . . Hover . | . . . Flight . | . . . Utility 3 | 1 2 . Device 1 | 1 . . Storage 1 | . 1 . Processor 1 | . 1 . Hackware . | . . . Protection . | . . . Artifact . | . . . Weapon 7 | 1 4 2 Energy Gun . | . . . Energy Cannon . | . . . Ballistic Gun 4 | 1 3 . Ballistic Cannon 2 | . . 2 Launcher . | . . . Special Weapon . | . . . Impact Weapon . | . . . Slashing Weapon 1 | . 1 . Piercing Weapon . | . . . Special Melee Weapon . | . . . Unidentified Prototypes . | . . . Parts Lost 4 | . 1 3 Power 1 | . . 1 Propulsion 1 | . 1 . Utility . | . . . Weapon 2 | . . 2 Highest Loss Streak 2 | . 1 2 To Critical Strikes . | . . . Average Slot Usage (%) 99 | . 99 98 Engine 13 | . 14 13 Treads 27 | . 27 28 Device 3 | . 4 . Storage 14 | . 14 14 Processor 10 | . 9 14 Ballistic Gun 24 | . 27 17 Ballistic Cannon 3 | . . 9 Peak Build Rating 9 | 7 8 9 Average Rating 8 | 6 7 8 On Entrance 7 | 6 7 8 Naked Turns . | . . . Heaviest Build 29 | 12 29 28 Greatest Support 40 | 40 40 40 Greatest Overweight (x) . | . . . Average Overweight (x) . | . . . Largest Inventory Capacity 15 | 8 15 15 Average Capacity 14 | 8 14 15 Most Carried 15 | 7 15 15 Average Carried 12 | 6 12 13 Final Capacity 15 | 8 15 15 Final Carried 15 | 7 15 12 Class Distribution -------------------- 100% | Mutant Dominant Class ---------------- Mutant | -10/Materials Mutant | -10/Subcaves Resources | -11 -10 -10 ----------- Run | Yrd Mat Sub Matter Collected 616 | 256 227 133 Remotely . | . . . Salvage Created 683 | 103 473 107 Parts 48 | 5 35 8 Haulers Intercepted 2 | . 2 . Recyclers Shooed . | . . . Parts Field Recycled . | . . . Retrieved Matter . | . . . Parts Self-Destructed 7 | . . 7 Prevented . | . . . Kills | -11 -10 -10 ------- Run | Yrd Mat Sub Combat Hostiles Destroyed 10 | . 9 1 Guns 10 | . 9 1 Classes Destroyed 8 | 2 5 1 Builder 1 | . 1 . Tunneler 1 | 1 . . Hauler 2 | . 2 . Recycler 2 | 1 1 . Watcher 1 | . 1 . Swarmer 5 | . 5 . Grunt 4 | . 4 . Subdweller 1 | . . 1 Best Kill Streak 5 | 2 5 1 Combat Bots Only 4 | . 4 1 Max Kills in Single Turn 2 | 1 2 1 Gunslinging 1 | . 1 . Exploded . | . . . Melee . | . . . Uniques/NPCs Destroyed . | . . . Combat | -11 -10 -10 -------- Run | Yrd Mat Sub Hostile Shots Fired 71 | . 51 20 Missed 11 | . 10 1 Damage Taken 1057 | . 399 658 Core 268 | . 64 204 Absorbed by Shields . | . . . Core Remaining (%) 100 | 100 . . Volleys Fired 81 | 4 40 37 Largest 2 | 2 2 2 Hottest 70 | 40 40 70 Shots Fired 150 | 8 80 62 Gun 117 | 8 80 29 Cannon 33 | . . 33 Launcher . | . . . Special . | . . . Kinetic 150 | 8 80 62 Thermal . | . . . Explosive . | . . . Electromagnetic . | . . . Robot Hit Streak 22 | 6 10 22 Robot Miss Streak 6 | 1 6 1 Penetration Max . | . . . Secondary Targets 4 | . 4 . Max Gunslinging Chain 1 | . 1 . Shots Hit Robots 99 | 6 47 46 Core Hits 40 | 3 24 13 Critical Kills 1 | . 1 . Critical Parts Destroyed 1 | . 1 . Critical Strikes 2 | . 2 . Destroy 2 | . 2 . Melee Attacks 7 | . 7 . Impact . | . . . Slashing 7 | . 7 . Piercing . | . . . Sneak Attacks . | . . . Combat Hostiles . | . . . Follow-up Attacks . | . . . Damage Inflicted 1066 | 61 503 502 Guns 874 | 61 503 310 Cannons 192 | . . 192 Explosions . | . . . Melee . | . . . Ramming . | . . . Kinetic 1066 | 61 503 502 Thermal . | . . . Explosive . | . . . Electromagnetic . | . . . Impact . | . . . Slashing . | . . . Piercing . | . . . Highest Corruption . | . . . Average Corruption . | . . . Corruption Purged . | . . . Corruption Blocked . | . . . Overload Shots . | . . . Overflow Damage . | . . . Projectiles . | . . . Explosions . | . . . Melee . | . . . Knockbacks 2 | . . 2 Impact . | . . . Kinetic 2 | . . 2 Secondary . | . . . Self-Inflicted Damage . | . . . Shots . | . . . Rammed . | . . . Targets Rammed . | . . . Kicked . | . . . Crushed . | . . . Highest Temperature 16 | . 16 . Average Temperature 9 | . 9 . Received Heat Transfer 153 | . 117 36 Siege Activations . | . . . Robots Corrupted . | . . . Combat Hostiles . | . . . Parts Fried . | . . . Impact Corruptions . | . . . Robots Melted . | . . . Combat Hostiles . | . . . Parts Melted . | . . . Heat Transferred . | . . . Parts Sabotaged . | . . . Parts Stolen . | . . . Parts Stripped . | . . . Power Chain Reactions . | . . . Alert | -11 -10 -10 ------- Run | Yrd Mat Sub Peak Influence 223 | 10 223 . Initial 6 | . 6 . Average 80 | 5 85 . Maximum Alert Level 1 | . 1 . Low Security (%) 93 | 100 93 . Level 1 6 | . 6 . Level 2 . | . . . Level 3 . | . . . Level 4 . | . . . Level 5 . | . . . High Security . | . . . Max Security . | . . . Squads Dispatched . | . . . Investigation . | . . . Extermination . | . . . Reinforcement . | . . . Assault . | . . . Garrison . | . . . Intercept . | . . . Searches Triggered . | . . . Construction Impeded . | . . . Haulers Reinforced . | . . . Active Scanning Responses . | . . . Cargo Convoy Interrupts . | . . . Stealth | -11 -10 -10 --------- Run | Yrd Mat Sub Distress Signals 3 | . 3 . Communications Jammed . | . . . Distress Signals . | . . . Times Spotted 19 | . 16 3 Peak Tracking Total 5 | . 5 1 Tactical Retreats 1 | . 1 . Traps | -11 -10 -10 ------- Run | Yrd Mat Sub Traps Triggered . | . . . Indirectly . | . . . Trap Hack Attempts . | . . . Triggered . | . . . Disarmed . | . . . Reprogrammed . | . . . Reused . | . . . Traps Extracted . | . . . Installed . | . . . Triggered . | . . . Machines | -11 -10 -10 ---------- Run | Yrd Mat Sub Machines Disabled . | . . . Max in Single Turn . | . . . Machines Repaired . | . . . Machines Dismantled . | . . . Machines Sabotaged . | . . . Overloaded Fab Kills . | . . . Hacking | -11 -10 -10 --------- Run | Yrd Mat Sub Machines Accessed 5 | . 5 . Terminals 5 | . 5 . Fabricators . | . . . Repair Stations . | . . . Recycling Units . | . . . Scanalyzers . | . . . Garrison Access . | . . . Total Hacks 15 | . 15 . Successful 7 | . 7 . Failed 8 | . 8 . Catastrophic 2 | . 2 . Database Lockouts . | . . . Manual 8 | . 8 . Terminals 15 | . 15 . Fabricators . | . . . Repair Stations . | . . . Recycling Units . | . . . Scanalyzers . | . . . Garrison Access . | . . . Terminal Hacks 4 | . 4 . Prototype ID Bank 1 | . 1 . Branch Access Points 1 | . 1 . Locate Traps 1 | . 1 . Hauler Manifests 1 | . 1 . Fabricator Hacks . | . . . Repair Station Hacks . | . . . Recycling Unit Hacks . | . . . Scanalyzer . | . . . Garrison Access Hacks . | . . . Unauthorized Hacks 3 | . 3 . Terminals 3 | . 3 . Botnet 3 | . 3 . Fabricators . | . . . Repair Stations . | . . . Recycling Units . | . . . Scanalyzers . | . . . Garrison Access . | . . . Data Cores Recovered . | . . . Used . | . . . Hacking Detections 5 | . 5 . Full Trace Events . | . . . Feedback Events . | . . . Feedback Blocked . | . . . Robot Schematics Acquired . | . . . Robots Built . | . . . Authchips . | . . . Time . | . . . Total Robot Build Rating . | . . . Part Schematics Acquired . | . . . Parts Built . | . . . Authchips . | . . . Time . | . . . Total Part Build Rating . | . . . Parts Repaired . | . . . Time . | . . . Parts Recycled . | . . . Recycled Matter . | . . . Retrieved Matter . | . . . Retrieved Components . | . . . Parts Scanalyzed . | . . . Part Schematics Acquired . | . . . Parts Damaged . | . . . Bothacking | -11 -10 -10 ------------ Run | Yrd Mat Sub Used RIF Installer . | . . . Robots Hacked . | . . . Non-combat . | . . . Combat . | . . . Robot Hacks Applied . | . . . Relay Couplers Released . | . . . Fabnet Peak Effective % . | . . . Robots Rewired . | . . . Allies Hacked . | . . . Hacks Repelled . | . . . Allies | -11 -10 -10 -------- Run | Yrd Mat Sub Total Allies . | . . . Largest Group . | . . . Highest-Rated Group . | . . . Highest-Rated Ally . | . . . Total Orders . | . . . Ally Attacks . | . . . Total Damage . | . . . Kills . | . . . Allies Corrupted . | . . . Allies Melted . | . . . Intel | -11 -10 -10 ------- Run | Yrd Mat Sub Robot Analysis Total . | . . . Derelict Logs Recovered . | . . . Drone Launches . | . . . Drone Recoveries . | . . . Exploration | -11 -10 -10 ------------- Run | Yrd Mat Sub Turns Passed 1641 | 71 1057 513 Spaces Moved 787 | 33 505 249 Core . | . . . Treads 780 | 26 505 249 Legs 7 | 7 . . Wheels . | . . . Hover . | . . . Flight . | . . . Fastest Speed 120 | 120 160 160 Average Speed 159 | 151 160 160 Slowest Speed 160 | 160 160 160 Overloaded Moves . | . . . Propulsion Burnouts . | . . . Robots Hopped . | . . . Cave-ins Triggered . | . . . Exploration Rate (%) 37 | 5 89 19 Regions Visited 2 Branch Regions 1 Pre-discovered Areas . | . . . Known Exits Taken . | . . . Unknown Exits Taken 2 | 1 1 . Scrap Searched . | . . . Spaces Dug 2 | . 2 . Terrain Destroyed 2 | . 2 . Melee 2 | . 2 . Projectile . | . . . AOE . | . . . Terrain Rammed . | . . . Walls Destroyed . | . . . Machines Disabled . | . . . Actions | -11 -10 -10 --------- Run | Yrd Mat Sub Total 1019 | 45 669 305 Wait 106 | 4 88 14 Move 785 | 32 504 249 Hop . | . . . Pick Up 13 | 1 12 . Fast Attach 1 | 1 . . Attach 5 | . 2 3 Detach . | . . . Swap 12 | 3 8 1 Drop 9 | . 8 1 Fire 81 | 4 40 37 Melee 7 | . 7 . Ram . | . . . Kick . | . . . Crush . | . . . Escape Stasis . | . . . Rewire . | . . . Trap . | . . . Miscellaneous . | . . . Route ------- -11/Scrapyard -10/Materials (discovered 4 exits: [*Mat x2] / *Min / [*Sub]) -10/Subcaves History --------- Turn | Location | Event 3 | -11/Scrapyard | Discovered new exit (range 1) 72 | -11/Scrapyard | Entered Materials 194 | -10/Materials | Discovered new exit (range 14) 304 | -10/Materials | Build established: Mutant 312 | -10/Materials | Discovered new exit (range 7) 723 | -10/Materials | Identified exit to Mines 873 | -10/Materials | Discovered new exit (range 7) 1123 | -10/Materials | Discovered new exit (range 3) 1129 | -10/Materials | Entered Subcaves 1252 | -10/Subcaves | Core integrity fell below 50% 1271 | -10/Subcaves | Core integrity fell below 20% 1642 | -10/Subcaves | Destroyed by WU-3JM(R) with Subdweller Machine Gun Last Messages --------------- 01277_ Ion Engine destroyed. 01277_ 3B-UKH(R) destroyed. 01282_ Subatomizers dissect the Sub. Beam Cannon. 01331_ A2-U42(u) builds Twisted Machinery. 01519_ JM-MR4(R) knocked back. 01522_ JM-MR4(R) destroyed. 01527_ Acquired 4 matter. 01528_ Acquired 24 matter. 01529_ Subatomizers dissect the Disposable Heat Sink. 01545_ 23-8WK(R) destroyed. 01548_ Acquired 35 matter. 01550_ Acquired 5 matter. 01551_ Acquired 4 matter. 01553_ Subatomizers dissect the Disposable Heat Sink. 01564_ Q6-2QZ(R) destroyed. 01567_ Acquired 14 matter. 01568_ Subatomizers dissect the Disposable Heat Sink. 01568_ Acquired 5 matter. 01626_ Assault Rifle destroyed. 01629_ WU-3JM(R) knocked back. Map ----- +----------------------------------------------------+ | ?????????????????????????????????????????????????? | | ?????????????????????????????????????????????????? | | ??????????????????????????????????#########???#??? | | ??????????????????????????????????# # #""##""#??? | | ?????????????????????????????????## "" ""#??## | | ?????????????????????????????????# # "# " ### | | ????????????????????????????????### #######"""## | | ????????????????????????????????# "* #????#""" | | ????????????????????????????????# " =[#????#"""" | | ????????????????????????????????#&*& #???#"#"#"#" | | ????????????????????????????????#" "???#?#""##" | | ????????????????????????????????#" !" #?????#"" " | | ??????????????????????????????##### ###????? # " | | ??????????????????????????##### ##??????#### | | ??????????????????????????# ## #???###???## | | ??????????????????????????## ####??## "##??? | | ???????????????????????????# ## ##???##"" ##? | | ???????????????????????????# ## ##?##""" ## | | ??????????????????????????## ## #?# "" ## | | ??????????????????????????# ## ### "" | | ??????????????????????????## ## ### "" | | ????????????????""????????# #### #??? ## | | ????????????????"" ####### #?# ##????## ## | | ???????????????? "" "R# % ##?# #?????#??# | | ???????????????? "" "" #?# #????????# | | ???????????????? """ "##@ # ###?# #????????# | | ?????????????????""" ??######???# "#????????# | | ??????????????????""?????????????# ##?###???##"" | | ?????????????????????????????????# ### ##??##" | | ????????????????????????????????## #### | | ????????????????????????????????# ## | | ???????????????????????????????# " | | ???????????????????????????# ### | | ???????????????????????????## ####?# | | ????????????????????????????# #????# | | ????????????????????????????## ????# | | ?????????????????????????????# #???## | | ???????????????????????????? ## ##????# | | ??????????????????????????? ## ?####?????# | | ?????????????????????????? ??# ??????????### | | ?????????????????????????????## #???????????# | | ??????????????????????????????## ???????????# | | ???????????????????????????????# ?????? | | ???????????????????????????????# ???? | | ????????????????????????????????????? | | ?????????????????????????????????????? | | ????????????????????????????????????? ## | | ??????????????????????????????????????# ??## | | ??????????????????????????????????????# ????## | | ?????????????????????????????????????????????# | +----------------------------------------------------+ Best States ------------- Heat Dissipation 25 Energy Generation 10 Energy Capacity 250 Matter Stores 300 Matter Capacity 300 Sight Range 16 Terrain Scan Density 10 Evasion (%) 55 Targeting Accuracy 5 Recoil Reduction 2 Item Schematics ----------------- None Robot Schematics ------------------ None Fabricated ------------ Nothing Alien Tech Used ----------------- None Achievements -------------- None Challenges ------------ None Game ------ Seed TiamatFlyingMegatreads Manual? 0 Play Time 00:11:59 Cumulative 154.0 hours Start 2024.08.13 @ 23:59:08 End 2024.08.14 @ 00:08:44 Sessions 1 Manual Loads 0 Difficulty Rogue Special Mode None Game No. 121 Rogue 121 Adventurer 0 Explorer 0 Win Type - Total 11 Types 7/0/3/1/0/0/0/0/0 Lore% 67 Gallery% 66 Achievement% 62 Wizard Run 0 Options --------- Layout 0 ASCII 0 Keyboard 1 Movement Vi Keybinds 0 Fullscreen 2 Font 24/Smallcaps Map View 76x50 Zoom Use 0% Tactical HUD 1 Map Filters NONE Filters NONE Steam 1 RUN: ec272fb9-76c0-4f0e-899b-ea66a404d973